[Event "Polugaevsky Memorial 2019"]
[Site "Samara"]
[Date "2019.07.18"]
[Round "9.8"]
[White "Karpeshov, Oleg"]
[Black "Krapivin, Alexander"]
[Result "0-1"]
[ECO "A25"]
[WhiteElo "2286"]
[BlackElo "2426"]
[Annotator "NA"]
[PlyCount "53"]
[EventDate "2019.07.10"]
[EventType "swiss"]
[EventCountry "RUS"]
[SourceTitle "playchess.com"]
[Source "ChessBase"]
[SourceQuality "1"]
[TimeControl "5400+30"]

1. c4 {[%emt 0:00:00]} e5 {[%emt 0:07:48]} 2. g3 {[%emt 0:00:00]} Nc6 {[%emt 0:00:05]} 3. Bg2 {[%emt 0:00:13]} g6 {[%emt 0:00:10]} 4. Nc3 {[%emt 0:00:10]} Bg7 {[%emt 0:00:03]} 5. Rb1 {[%emt 0:03:04]} d6 {[%emt 0:01:02]} 6. b4 {[%emt 0:00:20]} Bf5 {[%emt 0:07:24]} 7. d3 {[%emt 0:03:23]} Qd7 {[%emt 0:00:08]} 8. Nd5 {[%emt 0:07:40]} Nd8 {[%emt 0:01:40]} 9. e4 {[%emt 0:08:36]} Be6 {[%emt 0:03:41]} 10. Nf3 {[%emt 0:03:45]} c6 {[%emt 0:13:49]} 11. Ne3 {[%emt 0:00:53]} Ne7 {[%emt 0:00:14]} 12. Ng5 {[%emt 0:05:11]} O-O $11 {[%emt 0:00:32]} 13. h4 {[%emt 0:02:52]} f5 {[%emt 0:09:07]} 14. Bh3 {[%emt 0:18:40]} d5 {[%emt 0:16:57]} 15. h5 dxe4 16. Nxh7 {[%emt 0:21:48]} Kxh7 {[%emt 0:09:41]} 17. hxg6+ {[%emt 0:00:06]} Kg8 {[%emt 0:00:01]} 18. Qh5 {[%emt 0:00:28]} Rf6 {[%emt 0:00:23]} 19. dxe4 {[%emt 0:03:50]} f4 {[%emt 0:07:49]} 20. gxf4 {[%emt 0:01:59]} exf4 {[%emt 0:00:58]} 21. Bb2 {[%emt 0:02:50]} fxe3 {[%emt 0:01:25]} 22. Rd1 {[%emt 0:01:42]} exf2+ {[%emt 0:00:40]} 23. Ke2 {[%emt 0:00:09]} Bxc4+ {[%emt 0:05:30]} 24. Ke3 {[%emt 0:00:19]} Qc7 {[%emt 0:00:48]} 25. Bxf6 {[%emt 0:08:35]} Qg3+ {[%emt 0:00:09]} 26. Qf3 {[%emt 0:00:25]} Bh6+ {[%emt 0:00:40]} 27. Kd4 0-1